fUSD/lending_fUSD_20250720
["ID","MTS","AMOUNT","RATE_DAILY","PERIOD"]
[373469081,1753017107648,-1058.94,0.00020273,2]
[373469082,1753017107659,-1055.73,0.00020273,2]
[373469083,1753017107669,-306.18648868,0.00020273,2]
[373469084,1753017107679,-480.0,0.00020273,2]
[373469085,1753017107688,-950.68,0.00020273,2]
[373469086,1753017107698,-517.18,0.00020273,2]
[373469087,1753017107709,-480.0,0.00020273,2]
[373469088,1753017107718,-2178.9,0.00020273,2]
[373469089,1753017107728,-947.79,0.00020273,2]
[373469090,1753017107739,-805.2,0.00020273,2]
[373469091,1753017107748,-718.39,0.00020273,2]
[373469092,1753017107758,-1183.55,0.00020273,2]
[373469093,1753017107768,-2110.58,0.00020273,2]
[373469094,1753017107781,-967.68,0.00020273,2]
[373469095,1753017107791,-601.07489889,0.00020273,2]
[373469096,1753017107800,-480.0,0.00020273,2]
[373469097,1753017107811,-2353.52,0.00020273,2]
[373469098,1753017108033,-4098.43,0.00020273,2]
[373469099,1753017108043,-1024.32,0.00020273,2]
[373469100,1753017108052,-2123.97,0.00020273,2]
[373469101,1753017108061,-696.21,0.00020273,2]
[373469102,1753017108070,-625.29,0.00020273,2]
[373469103,1753017108078,-644.66,0.00020273,2]
[373469104,1753017108087,-480.0,0.00020273,2]
[373469105,1753017108096,-577.79,0.00020273,2]
[373469106,1753017108105,-1455.7,0.00020273,2]
[373469107,1753017108117,-4394.04,0.00020273,2]
[373469108,1753017108127,-480.0,0.00020273,2]
[373469109,1753017108137,-631.76,0.00020273,2]
[373469110,1753017108146,-560.68,0.00020273,2]
[373469111,1753017108156,-1305.74,0.00020273,2]
[373469112,1753017108166,-3043.65,0.00020273,2]
[373469113,1753017108175,-480.0,0.00020273,2]
[373469114,1753017108184,-5028.52,0.00020273,2]
[373469115,1753017108194,-1482.98,0.00020273,2]
[373469116,1753017108204,-477.15540609,0.00020273,2]
[373469117,1753017108213,-662.54,0.00020273,2]
[373469118,1753017108223,-480.0,0.00020273,2]
[373469119,1753017108232,-937.5,0.00020273,2]
[373469120,1753017108242,-1222.76,0.00020273,2]
[373469121,1753017108251,-1666.2,0.00020273,2]
[373469122,1753017108261,-756.17,0.00020273,2]
[373469123,1753017108270,-1645.82,0.00020273,2]
[373469124,1753017108279,-541.13,0.00020273,2]
[373469125,1753017108289,-1403.01,0.00020273,2]
[373469126,1753017108299,-480.0,0.00020273,2]
[373469127,1753017108308,-480.0,0.00020273,2]
[373469128,1753017108318,-1593.89,0.00020273,2]
[373469129,1753017108327,-480.0,0.00020273,2]
[373469130,1753017108337,-447.52245071,0.00020273,2]
[373469131,1753017108346,-480.0,0.00020273,2]
[373469132,1753017108356,-1264.81,0.00020273,2]
[373469133,1753017108366,-602.57,0.00020273,2]
[373469134,1753017108375,-628.9,0.00020273,2]
[373469135,1753017108385,-1769.9,0.00020273,2]
[373469136,1753017108394,-2894.53,0.00020273,2]
[373469137,1753017108404,-1048.92,0.00020273,2]
[373469138,1753017108413,-1096.7,0.00020273,2]
[373469139,1753017108423,-1017.95,0.00020273,2]
[373469140,1753017108432,-1674.97,0.00020273,2]
[373469141,1753017108442,-480.0,0.00020273,2]
[373469142,1753017108451,-1796.0,0.00020273,2]
[373469143,1753017108461,-618.11,0.00020273,2]
[373469144,1753017108471,-3402.31,0.00020273,2]
[373469145,1753017108480,-673.18,0.00020273,2]
[373469146,1753017108664,-1540.15,0.00020273,2]
[373469147,1753017108674,-480.0,0.00020273,2]
[373469148,1753017108683,-3514.33,0.00020273,2]
[373469149,1753017108693,-1724.33,0.00020273,2]
[373469150,1753017108702,-480.0,0.00020273,2]
[373469151,1753017108712,-2932.34,0.00020273,2]
[373469152,1753017108722,-1323.7,0.00020273,2]
[373469153,1753017108732,-1852.55,0.00020273,2]
[373469154,1753017108741,-845.83,0.00020273,2]
[373469155,1753017108751,-1157.0,0.00020273,2]
[373469156,1753017108760,-559.68,0.00020273,2]
[373469157,1753017108773,-671.29,0.00020273,2]
[373469158,1753017108782,-1185.66,0.00020273,2]
[373469159,1753017108791,-900.26,0.00020273,2]
[373469160,1753017108801,-1261.2,0.00020273,2]
[373469161,1753017108812,-1672.17,0.00020273,2]
[373469162,1753017108821,-480.0,0.00020273,2]
[373469163,1753017108831,-555.07530247,0.00020273,2]
[373469164,1753017108840,-4413.57,0.00020273,2]
[373469165,1753017108851,-480.0,0.00020273,2]
[373469166,1753017108860,-722.76,0.00020273,2]
[373469167,1753017108869,-755.77,0.00020273,2]
[373469168,1753017108879,-4158.01,0.00020273,2]
[373469169,1753017108888,-2463.68,0.00020273,2]
[373469170,1753017108898,-926.36,0.00020273,2]
[373469171,1753017108907,-1895.02,0.00020273,2]
[373469172,1753017108916,-758.0,0.00020273,2]
[373469173,1753017108926,-1614.88,0.00020273,2]
[373469174,1753017108937,-480.0,0.00020273,2]
[373469175,1753017108947,-480.0,0.00020273,2]
[373469176,1753017108956,-2738.51,0.00020273,2]
[373469177,1753017108966,-1019.8,0.00020273,2]
[373469178,1753017108976,-728.28,0.00020273,2]
[373469179,1753017108986,-671.87,0.00020273,2]
[373469181,1753017108995,-549.4,0.00020273,2]
[373469182,1753017109005,-480.0,0.00020273,2]
[373469183,1753017109015,-2824.54,0.00020273,2]
[373469184,1753017109024,-541.64,0.00020273,2]
[373469185,1753017109034,-5142.63,0.00020273,2]
[373469186,1753017109043,-978.7,0.00020273,2]
[373469187,1753017109053,-759.39,0.00020273,2]
[373469188,1753017109063,-4422.78,0.00020273,2]
[373469189,1753017109072,-5113.01,0.00020273,2]
[373469190,1753017109082,-1685.16,0.00020273,2]
[373469191,1753017109091,-480.0,0.00020273,2]
[373469192,1753017109101,-657.21,0.00020273,2]
[373469193,1753017109111,-983.37,0.00020273,2]
[373469194,1753017109120,-1817.04,0.00020273,2]
[373469195,1753017109130,-601.7,0.00020273,2]
[373469196,1753017109139,-507.64,0.00020273,2]
[373469197,1753017109149,-929.57,0.00020273,2]
[373469198,1753017109159,-833.88,0.00020273,2]
[373469199,1753017109168,-731.23,0.00020273,2]
[373469200,1753017109178,-1000.0,0.00020273,2]
[373469201,1753017109188,-12606.02,0.00020273,2]
[373469202,1753017109198,-1549.75,0.00020273,2]
[373469203,1753017109208,-1508.11,0.00020273,2]
[373469204,1753017109217,-151.0,0.00020273,2]
[373469205,1753017109227,-1419.97,0.00020273,2]
[373469206,1753017109236,-2260.87,0.00020273,2]
[373469207,1753017109246,-504.82,0.00020273,2]
[373469208,1753017109256,-800.6,0.00020273,2]
[373469209,1753017109265,-626.65,0.00020273,2]
[373469210,1753017109275,-665.1,0.00020273,2]
[373469211,1753017109285,-1744.39,0.00020273,2]
[373469212,1753017109294,-1056.09,0.00020273,2]
[373469213,1753017109304,-480.0,0.00020273,2]
[373469214,1753017109314,-796.56,0.00020273,2]
[373469215,1753017109323,-752.54,0.00020273,2]
[373469216,1753017109332,-788.92,0.00020273,2]
[373469217,1753017109341,-1650.61,0.00020273,2]
[373469218,1753017109350,-943.92,0.00020273,2]
[373469219,1753017109360,-1127.31,0.00020273,2]
[373469220,1753017109369,-986.58,0.00020273,2]
[373469221,1753017109378,-1461.67,0.00020273,2]
[373469222,1753017109388,-2098.14,0.00020273,2]
[373469223,1753017109397,-1698.93,0.00020273,2]
[373469224,1753017109406,-509.14,0.00020273,2]
[373469225,1753017109416,-1313.06,0.00020273,2]
[373469226,1753017109426,-1032.49,0.00020273,2]
[373469227,1753017109435,-6885.91,0.00020273,2]
[373469228,1753017109444,-2339.59,0.00020273,2]
[373469229,1753017109454,-518.46,0.00020273,2]
[373469230,1753017109463,-3053.99,0.00020273,2]
[373469231,1753017109472,-2204.23,0.00020273,2]
[373469232,1753017109481,-1040.39,0.00020273,2]
[373469233,1753017109491,-2127.43,0.00020273,2]
[373469234,1753017109500,-607.74,0.00020273,2]
[373469235,1753017109510,-3359.94,0.00020273,2]
[373469236,1753017109519,-151.0,0.00020273,2]
[373469237,1753017109530,-174.181051,0.00020273,2]
[373469238,1753017109539,-202.841981,0.00020273,2]
[373469239,1753017109548,-38027.73,0.00020273,2]
[373469240,1753017109557,-918.24,0.00020273,2]
[373469241,1753017109566,-1367.42,0.00020273,2]
[373469242,1753017109575,-995.02,0.00020273,2]
[373469243,1753017109584,-2240.44,0.00020273,2]
[373469244,1753017109594,-1323.1,0.00020273,2]
[373469245,1753017109604,-480.0,0.00020273,2]
[373469246,1753017109614,-1236.91,0.00020273,2]
[373469247,1753017109623,-2429.74,0.00020273,2]
[373469248,1753017109632,-2151.22,0.00020273,2]
[373469249,1753017109642,-889.82,0.00020273,2]
[373469250,1753017109651,-1731.22,0.00020273,2]
[373469251,1753017109661,-1271.07,0.00020273,2]
[373469252,1753017109670,-2750.09,0.00020273,2]
[373469253,1753017109679,-552.5,0.00020273,2]
[373469254,1753017109688,-500.0,0.00020274,2]
[373469255,1753017109703,-180.29188315,0.00020274,2]
[373469256,1753017109723,-242.0,0.00020283,2]
[373469257,1753017109741,-420.0,0.00020306,2]
[373469258,1753017109762,-242.0,0.00020306,2]
[373469259,1753017109779,-168.0,0.00020377,2]
[373469260,1753017109797,-151.000655,0.00020383,2]
[373469261,1753017109817,-151.0,0.00020383,2]
[373469262,1753017109838,-151.0,0.00020383,2]
[373469263,1753017109856,-151.0,0.00020383,2]
[373469264,1753017109874,-151.0,0.00020383,2]
[373469265,1753017109892,-151.0,0.00020383,2]
[373469266,1753017109907,-151.0,0.00020383,2]
[373469267,1753017109925,-151.0,0.00020383,2]
[373469268,1753017109939,-151.0,0.00020383,2]
[373469269,1753017109957,-151.0,0.00020383,2]
[373469270,1753017109970,-151.0,0.00020383,2]
[373469271,1753017109986,-151.0,0.00020383,2]
[373469272,1753017110002,-151.0,0.00020383,2]
[373469273,1753017110017,-151.0,0.00020383,2]
[373469274,1753017110031,-151.0,0.00020383,2]
[373469275,1753017110046,-165.06342,0.00020383,2]
[373469276,1753017110062,-151.0,0.00020383,2]
[373469277,1753017110076,-151.0,0.00020383,2]
[373469278,1753017110092,-151.0,0.00020383,2]
[373469279,1753017110106,-531.67,0.00020383,2]
[373469280,1753017110122,-269.26,0.00020383,2]
[373469281,1753017110136,-480.0,0.00020383,2]
[373469282,1753017110151,-151.0,0.00020383,2]
[373469283,1753017110167,-151.0,0.00020383,2]
[373469284,1753017110181,-480.0,0.00020383,2]
[373469285,1753017110197,-522.76,0.00020383,2]
[373469286,1753017110211,-151.0,0.00020383,2]
[373469287,1753017110226,-486.31,0.00020383,2]
[373469288,1753017110242,-151.0,0.00020383,2]
[373469289,1753017110256,-480.0,0.00020383,2]
[373469290,1753017110272,-295.599723,0.00020383,2]
[373469291,1753017110286,-295.599723,0.00020383,2]
[373469292,1753017110301,-908.756426,0.00020383,2]
[373469293,1753017110317,-480.0,0.00020383,2]
[373469294,1753017110333,-190.527544,0.00020383,2]
[373469295,1753017110347,-190.527544,0.00020383,2]
[373469296,1753017110361,-151.0,0.00020383,2]
[373469297,1753017110376,-480.0,0.00020383,2]
[373469298,1753017110391,-1078.6235,0.00020383,2]
[373469299,1753017110407,-1096.031062,0.00020383,2]
[373469300,1753017110422,-233.246789,0.00020383,2]
[373469301,1753017110437,-163.09765,0.00020383,2]
[373469302,1753017110451,-480.0,0.00020383,2]
[373469303,1753017110467,-163.09765,0.00020383,2]
[373469304,1753017110481,-151.0,0.00020383,2]
[373469305,1753017110496,-151.0,0.00020383,2]
[373469306,1753017110511,-480.0,0.00020383,2]
[373469307,1753017110525,-151.0,0.00020383,2]
[373469308,1753017110540,-151.0,0.00020383,2]
[373469309,1753017110555,-921.73,0.00020383,2]
[373469310,1753017110571,-536.45,0.00020383,2]
[373469311,1753017110585,-151.0,0.00020383,2]
[373469312,1753017110600,-631.3,0.00020383,2]
[373469313,1753017110615,-480.0,0.00020383,2]
[373469314,1753017110630,-398.68470859,0.00020383,2]
[373469315,1753017110644,-730.67,0.00020383,2]
[373469316,1753017110659,-920.27,0.00020383,2]
[373469317,1753017110674,-480.0,0.00020383,2]
[373469318,1753017110689,-559.71,0.00020383,2]
[373469319,1753017110704,-549.06,0.00020383,2]
[373469320,1753017110719,-480.0,0.00020383,2]
[373469321,1753017110735,-627.11,0.00020383,2]
[373469322,1753017110750,-623.45,0.00020383,2]
[373469323,1753017110766,-480.0,0.00020383,2]
[373469324,1753017110783,-730.3,0.00020383,2]
[373469325,1753017110797,-691.2,0.00020383,2]
[373469326,1753017110812,-553.59,0.00020383,2]
[373469327,1753017110828,-503.01,0.00020383,2]
[373469328,1753017110843,-527.76,0.00020383,2]
[373469329,1753017110859,-151.0,0.00020383,2]
[373469330,1753017110873,-854.71,0.00020383,2]
[373469331,1753017110889,-587.03,0.00020383,2]
[373469332,1753017110904,-633.77,0.00020383,2]
[373469333,1753017110918,-151.0,0.00020383,2]
[373469334,1753017110933,-855.53,0.00020383,2]
[373469335,1753017110949,-480.0,0.00020383,2]
[373469336,1753017110964,-151.0,0.00020383,2]
[373469337,1753017110978,-480.0,0.00020383,2]
[373469338,1753017110993,-480.0,0.00020383,2]
[373469339,1753017111008,-151.0,0.00020383,2]
[373469340,1753017111023,-863.86,0.00020383,2]
[373469341,1753017111043,-946.66,0.00020383,2]
[373469342,1753017111058,-586.59340802,0.00020383,2]
[373469343,1753017111074,-620.528413,0.00020383,2]
[373469344,1753017111089,-687.85,0.00020383,2]
[373469345,1753017111104,-1039.01,0.00020383,2]
[373469346,1753017111119,-480.0,0.00020383,2]
[373469347,1753017111134,-620.528413,0.00020383,2]
[373469348,1753017111150,-738.62,0.00020383,2]
[373469349,1753017111165,-480.0,0.00020383,2]
[373469350,1753017111180,-3553.23,0.00020383,2]
[373469351,1753017111196,-518.78,0.00020383,2]
[373469352,1753017111212,-480.0,0.00020383,2]
[373469353,1753017111227,-592.30599916,0.00020383,2]
[373469354,1753017111243,-1780.15,0.00020383,2]
[373469355,1753017111257,-480.0,0.00020383,2]
[373469356,1753017111272,-785.24,0.00020383,2]
[373469357,1753017111287,-480.0,0.00020383,2]
[373469358,1753017111302,-480.0,0.00020383,2]
[373469359,1753017111317,-704.79,0.00020383,2]
[373469360,1753017111332,-512.33,0.00020383,2]
[373469361,1753017111348,-619.75,0.00020383,2]
[373469362,1753017111363,-480.0,0.00020383,2]
[373469363,1753017111377,-632.04,0.00020383,2]
[373469364,1753017111391,-1397.47,0.00020383,2]
[373469365,1753017111609,-202.56,0.00020383,2]
[373469366,1753017111619,-480.0,0.00020383,2]
[373469367,1753017111629,-151.0,0.00020383,2]
[373469368,1753017111638,-499.9,0.00020383,2]
[373469369,1753017111648,-480.0,0.00020383,2]
[373469370,1753017111657,-156.596884,0.00020383,2]
[373469371,1753017111666,-480.0,0.00020383,2]
[373469372,1753017111676,-156.596884,0.00020383,2]
[373469373,1753017111686,-318.17968279,0.00020383,2]
[373469374,1753017111695,-561.14,0.00020383,2]
[373469375,1753017111704,-151.0,0.00020383,2]
[373469376,1753017111714,-317.76811227,0.00020383,2]
[373469377,1753017111723,-151.0,0.00020383,2]
[373469378,1753017111733,-698.23,0.00020383,2]
[373469379,1753017111742,-966.01,0.00020383,2]
[373469380,1753017111751,-480.0,0.00020383,2]
[373469381,1753017111761,-480.0,0.00020383,2]
[373469382,1753017111772,-279.95906604,0.00020383,2]
[373469383,1753017111786,-2587.61,0.00020383,2]
[373469384,1753017111796,-508.38,0.00020383,2]
[373469385,1753017111805,-887.97,0.00020383,2]
[373469386,1753017111815,-527.84,0.00020383,2]
[373469387,1753017111827,-480.0,0.00020383,2]
[373469388,1753017111836,-151.0,0.00020383,2]
[373469389,1753017111846,-151.0,0.00020383,2]
[373469390,1753017111856,-885.97,0.00020383,2]
[373469391,1753017111866,-480.0,0.00020383,2]
[373469392,1753017111875,-649.01,0.00020383,2]
[373469393,1753017111885,-1167.69,0.00020383,2]
[373469394,1753017111895,-480.0,0.00020383,2]
[373469395,1753017111905,-596.23,0.00020383,2]
[373469396,1753017111914,-981.05,0.00020383,2]
[373469397,1753017111924,-951.99,0.00020383,2]
[373469398,1753017111934,-1569.89,0.00020383,2]
[373469399,1753017111944,-979.63,0.00020383,2]
[373469400,1753017111955,-480.0,0.00020383,2]
[373469401,1753017111964,-1103.5,0.00020383,2]
[373469402,1753017111974,-480.0,0.00020383,2]
[373469403,1753017111984,-480.0,0.00020383,2]
[373469404,1753017111993,-611.3,0.00020383,2]
[373469405,1753017112003,-780.54,0.00020383,2]
[373469406,1753017112012,-480.0,0.00020383,2]
[373469407,1753017112022,-682.46,0.00020383,2]
[373469408,1753017112032,-230.72023605,0.00020383,2]
[373469409,1753017112042,-151.0,0.00020383,2]
[373469410,1753017112051,-1603.58,0.00020383,2]
[373469411,1753017112061,-151.0,0.00020383,2]
[373469412,1753017112070,-932.82,0.00020383,2]
[373469413,1753017112079,-1481.32,0.00020383,2]
[373469414,1753017112088,-958.44,0.00020383,2]
[373469415,1753017112098,-480.0,0.00020383,2]
[373469416,1753017112107,-480.0,0.00020383,2]
[373469417,1753017112117,-480.0,0.00020383,2]
[373469418,1753017112126,-577.7,0.00020383,2]
[373469419,1753017112135,-480.0,0.00020383,2]
[373469420,1753017112145,-739.86,0.00020383,2]
[373469421,1753017112154,-649.08,0.00020383,2]
[373469422,1753017112163,-480.0,0.00020383,2]
[373469423,1753017112173,-838.97,0.00020383,2]
[373469424,1753017112183,-513.0,0.00020383,2]
[373469425,1753017112192,-151.0,0.00020383,2]
[373469426,1753017112202,-3028.24,0.00020383,2]
[373469427,1753017112212,-565.62,0.00020383,2]
[373469428,1753017112221,-853.59,0.00020383,2]
[373469429,1753017112232,-480.0,0.00020383,2]
[373469430,1753017112243,-194.317345,0.00020383,2]
[373469431,1753017112255,-1906.31,0.00020383,2]
[373469432,1753017112266,-480.0,0.00020383,2]
[373469433,1753017112277,-151.0,0.00020383,2]
[373469434,1753017112287,-480.0,0.00020383,2]
[373469435,1753017112297,-1696.96,0.00020383,2]
[373469436,1753017112307,-319.93226574,0.00020383,2]
[373469437,1753017112317,-981.38,0.00020383,2]
[373469438,1753017112327,-2026.54,0.00020383,2]
[373469439,1753017112336,-823.88,0.00020383,2]
[373469440,1753017112346,-604.08340622,0.00020383,2]
[373469441,1753017112356,-963.41,0.00020383,2]
[373469442,1753017112367,-830.46,0.00020383,2]
[373469443,1753017112376,-164.363881,0.00020383,2]
[373469444,1753017112387,-164.363881,0.00020383,2]
[373469445,1753017112399,-5709.5,0.00020383,2]
[373469446,1753017112410,-569.92,0.00020383,2]
[373469447,1753017112421,-480.0,0.00020383,2]
[373469448,1753017112431,-648.1,0.00020383,2]
[373469449,1753017112441,-729.74,0.00020383,2]
[373469450,1753017112451,-1388.48,0.00020383,2]
[373469451,1753017112460,-5215.18,0.00020383,2]
[373469452,1753017112470,-827.12,0.00020383,2]
[373469453,1753017112480,-480.0,0.00020383,2]
[373469454,1753017112491,-1044.1,0.00020383,2]
[373469455,1753017112501,-838.71,0.00020383,2]
[373469456,1753017112511,-2977.2,0.00020383,2]
[373469457,1753017112521,-993.38,0.00020383,2]
[373469458,1753017112531,-480.0,0.00020383,2]
[373469459,1753017112541,-738.73,0.00020383,2]
[373469460,1753017112552,-480.0,0.00020383,2]
[373469461,1753017112562,-942.6,0.00020383,2]
[373469462,1753017112572,-480.0,0.00020383,2]
[373469463,1753017112582,-480.0,0.00020383,2]
[373469464,1753017112593,-846.89,0.00020383,2]
[373469465,1753017112603,-151.0,0.00020383,2]
[373469466,1753017112612,-214.68,0.00020383,2]
[373469467,1753017112622,-1356.61,0.00020383,2]
[373469468,1753017112633,-1058.94,0.00020383,2]
[373469469,1753017112643,-1055.73,0.00020383,2]
[373469470,1753017112653,-480.0,0.00020383,2]
[373469471,1753017112663,-950.68,0.00020383,2]
[373469472,1753017112672,-517.18,0.00020383,2]
[373469473,1753017112682,-480.0,0.00020383,2]
[373469474,1753017112691,-2178.9,0.00020383,2]
[373469475,1753017112700,-947.79,0.00020383,2]
[373469476,1753017112710,-805.2,0.00020383,2]
[373469477,1753017112720,-718.39,0.00020383,2]
[373469478,1753017112729,-1183.55,0.00020383,2]
[373469479,1753017112739,-2110.58,0.00020383,2]
[373469480,1753017112748,-151.0,0.00020383,2]
[373469481,1753017112757,-967.68,0.00020383,2]
[373469482,1753017112768,-480.0,0.00020383,2]
[373469483,1753017112781,-2353.52,0.00020383,2]
[373469484,1753017112791,-4098.43,0.00020383,2]
[373469485,1753017112800,-1024.32,0.00020383,2]
[373469486,1753017112811,-2123.97,0.00020383,2]
[373469487,1753017112820,-696.21,0.00020383,2]
[373469488,1753017112830,-625.29,0.00020383,2]
[373469489,1753017112840,-644.66,0.00020383,2]
[373469490,1753017112852,-480.0,0.00020383,2]
[373469491,1753017112862,-577.79,0.00020383,2]
[373469492,1753017112872,-1455.7,0.00020383,2]
[373469493,1753017112882,-4394.04,0.00020383,2]
[373469494,1753017112892,-151.0,0.00020383,2]
[373469495,1753017112902,-480.0,0.00020383,2]
[373469496,1753017112912,-631.76,0.00020383,2]
[373469497,1753017112922,-560.68,0.00020383,2]
[373469498,1753017112931,-1305.74,0.00020383,2]
[373469499,1753017112942,-3043.65,0.00020383,2]
[373469500,1753017112952,-480.0,0.00020383,2]
[373469501,1753017112961,-5028.52,0.00020383,2]
[373469502,1753017112971,-1482.98,0.00020383,2]
[373469503,1753017112981,-662.54,0.00020383,2]
[373469504,1753017112990,-937.5,0.00020383,2]
[373469505,1753017113000,-480.0,0.00020383,2]
[373469506,1753017113010,-1222.76,0.00020383,2]
[373469507,1753017113020,-1666.2,0.00020383,2]
[373469508,1753017113031,-756.17,0.00020383,2]
[373469509,1753017113040,-1645.82,0.00020383,2]
[373469510,1753017113051,-541.13,0.00020383,2]
[373469511,1753017113061,-1403.01,0.00020383,2]
[373469512,1753017113072,-480.0,0.00020383,2]
[373469513,1753017113082,-480.0,0.00020383,2]
[373469514,1753017113092,-1593.89,0.00020383,2]
[373469515,1753017113102,-480.0,0.00020383,2]
[373469516,1753017113111,-206.024296,0.00020383,2]
[373469517,1753017113121,-480.0,0.00020383,2]
[373469518,1753017113131,-1264.81,0.00020383,2]
[373469519,1753017113140,-602.57,0.00020383,2]
[373469520,1753017113150,-206.024296,0.00020383,2]
[373469521,1753017113159,-628.9,0.00020383,2]
[373469522,1753017113170,-1769.9,0.00020383,2]
[373469523,1753017113180,-2894.53,0.00020383,2]
[373469524,1753017113189,-1048.92,0.00020383,2]
[373469525,1753017113199,-1096.7,0.00020383,2]
[373469526,1753017113209,-1017.95,0.00020383,2]
[373469527,1753017113219,-1674.97,0.00020383,2]
[373469528,1753017113229,-480.0,0.00020383,2]
[373469529,1753017113239,-1796.0,0.00020383,2]
[373469530,1753017113249,-3402.31,0.00020383,2]
[373469531,1753017113258,-618.11,0.00020383,2]
[373469532,1753017113268,-673.18,0.00020383,2]
[373469533,1753017113278,-1540.15,0.00020383,2]
[373469534,1753017113288,-480.0,0.00020383,2]
[373469535,1753017113297,-238.692887,0.00020383,2]
[373469536,1753017113307,-3514.33,0.00020383,2]
[373469537,1753017113318,-238.692887,0.00020383,2]
[373469538,1753017113328,-480.0,0.00020383,2]
[373469539,1753017113338,-1724.33,0.00020383,2]
[373469540,1753017113347,-2932.34,0.00020383,2]
[373469541,1753017113357,-1323.7,0.00020383,2]
[373469542,1753017113367,-1852.55,0.00020383,2]
[373469543,1753017113377,-845.83,0.00020383,2]
[373469544,1753017113386,-1157.0,0.00020383,2]
[373469545,1753017113396,-559.68,0.00020383,2]
[373469546,1753017113406,-671.29,0.00020383,2]
[373469547,1753017113417,-1185.66,0.00020383,2]
[373469548,1753017113427,-900.26,0.00020383,2]
[373469549,1753017113438,-1672.17,0.00020383,2]
[373469550,1753017113447,-1261.2,0.00020383,2]
[373469551,1753017113458,-480.0,0.00020383,2]
[373469552,1753017113468,-4413.57,0.00020383,2]
[373469553,1753017113478,-263.845789,0.00020383,2]
[373469554,1753017113489,-480.0,0.00020383,2]
[373469555,1753017113498,-722.76,0.00020383,2]
[373469556,1753017113507,-4158.01,0.00020383,2]
[373469557,1753017113517,-2463.68,0.00020383,2]
[373469558,1753017113527,-755.77,0.00020383,2]
[373469559,1753017113536,-263.845789,0.00020383,2]
[373469560,1753017113545,-926.36,0.00020383,2]
[373469561,1753017113555,-1895.02,0.00020383,2]
[373469562,1753017113564,-151.0,0.00020383,2]
[373469563,1753017113573,-758.0,0.00020383,2]
[373469564,1753017113583,-1614.88,0.00020383,2]
[373469565,1753017113593,-335.41989991,0.00020383,2]
[373469566,1753017113602,-480.0,0.00020383,2]
[373469567,1753017113612,-2738.51,0.00020383,2]
[373469568,1753017113621,-1019.8,0.00020383,2]
[373469569,1753017113630,-728.28,0.00020383,2]
[373469570,1753017113640,-671.87,0.00020383,2]
[373469571,1753017113649,-480.0,0.00020383,2]
[373469572,1753017113659,-549.4,0.00020383,2]
[373469573,1753017113669,-2824.54,0.00020383,2]
[373469574,1753017113678,-541.64,0.00020383,2]
[373469575,1753017113689,-5142.63,0.00020383,2]
[373469576,1753017113699,-978.7,0.00020383,2]
[373469577,1753017113708,-759.39,0.00020383,2]
[373469578,1753017113719,-5113.01,0.00020383,2]
[373469579,1753017113729,-4422.78,0.00020383,2]
[373469580,1753017113738,-1685.16,0.00020383,2]
[373469581,1753017113748,-480.0,0.00020383,2]